[Event "75th Argentine Women-ch 2024"]
[Site "Buenos Aires"]
[Date "2024.11.22"]
[Round "1.1"]
[White "Montiel Marin, Micaela Agustina"]
[Black "Campos, Maria Jose"]
[Result "0-1"]
[ECO "E06"]
[WhiteElo "1880"]
[BlackElo "2272"]
[Annotator "RC"]
[PlyCount "72"]
[EventDate "2024.11.21"]
[EventType "swiss"]
[EventCountry "ARG"]
[SourceTitle "playchess.com"]
[Source "ChessBase"]
[SourceQuality "1"]
[TimeControl "5400+30"]

1. c4 {[%emt 0:00:03]} e6 {[%emt 0:00:38]} 2. g3 {[%emt 0:00:06]} Nf6 {[%emt 0:00:37]} 3. Bg2 {[%emt 0:00:04]} d5 {[%emt 0:00:29]} 4. Nf3 {[%emt 0:00:08]} Be7 {[%emt 0:00:42]} 5. O-O {[%emt 0:00:14]} O-O {[%emt 0:00:10]} 6. d4 {[%emt 0:01:41]} a5 {[%emt 0:00:46]} 7. Nc3 {[%emt 0:01:13]} b6 {[%emt 1:30:38]} 8. Ne5 {[%emt 0:07:52]} Ba6 {[%emt 0:00:30]} 9. Re1 {[%emt 0:02:39]} c6 {[%emt 0:00:00]} 10. cxd5 {[%emt 0:05:02]} cxd5 {[%emt 0:01:00]} 11. e4 {[%emt 0:13:11]} dxe4 {[%emt 0:00:00]} 12. Nxe4 {[%emt 1:04:17]} Ra7 {[%emt 0:00:00]} 13. Nc3 {[%emt 0:00:30]} Bb4 {[%emt 0:00:00]} 14. a3 {[%emt 0:00:30]} Bxc3 {[%emt 0:00:00]} 15. bxc3 {[%emt 0:00:00]} Bb7 {[%emt 0:00:00]} 16. c4 {[%emt 0:00:00]} Bxg2 {[%emt 0:00:00]} 17. Kxg2 {[%emt 0:00:00]} b5 {[%emt 0:00:00]} 18. Be3 {[%emt 0:00:00]} Ra6 {[%emt 0:00:00]} 19. Qb3 {[%emt 0:00:00]} bxc4 {[%emt 0:00:00]} 20. Qxc4 {[%emt 0:00:00]} Rd6 {[%emt 0:00:00]} 21. Rab1 {[%emt 0:00:00]} Nbd7 {[%emt 0:00:00]} 22. Kg1 {[%emt 0:00:00]} Nd5 {[%emt 0:06:00]} 23. Bd2 {[%emt 0:00:00]} N5b6 {[%emt 0:00:00]} 24. Qb5 {[%emt 0:00:11]} Rd5 {[%emt 0:00:00]} 25. Qc6 {[%emt 0:00:46]} Nxe5 {[%emt 0:00:00]} 26. dxe5 {[%emt 0:00:19]} Nd7 {[%emt 0:00:00]} 27. Bf4 {[%emt 0:02:04]} g5 {[%emt 0:00:00]} 28. Bc1 {[%emt 0:01:28]} Nxe5 {[%emt 0:00:00]} 29. Qc3 {[%emt 0:00:23]} Qc8 {[%emt 0:00:00]} 30. Qe3 {[%emt 0:00:49]} f6 {[%emt 0:00:00]} 31. Kg2 {[%emt 0:00:42]} Re8 {[%emt 0:00:00]} 32. Qa7 {[%emt 0:01:06]} Rd7 {[%emt 0:00:00]} 33. Qxa5 {[%emt 0:00:16]} Qc6+ {[%emt 0:00:00]} 34. Kf1 {[%emt 0:01:11]} Qh1+ {[%emt 0:00:00]} 35. Ke2 {[%emt 0:00:03]} Qe4+ {[%emt 0:00:00]} 36. Be3 {[%emt 0:00:34]} Qd3# {[%emt 0:07:00]} 0-1

[Event "75th Argentine Women-ch 2024"]
[Site "Buenos Aires"]
[Date "2024.11.22"]
[Round "1.2"]
[White "Amura, Claudia"]
[Black "Ramirez, Marysol"]
[Result "1/2-1/2"]
[ECO "D46"]
[WhiteElo "2183"]
[BlackElo "1824"]
[Annotator "RC"]
[PlyCount "135"]
[EventDate "2024.11.21"]
[EventType "swiss"]
[EventCountry "ARG"]
[SourceTitle "playchess.com"]
[Source "ChessBase"]
[SourceQuality "1"]
[TimeControl "5400+30"]

1. d4 {[%emt 0:00:04]} d5 {[%emt 1:31:00]} 2. c4 {[%emt 0:00:50]} c6 {[%emt 0:00:30]} 3. Nf3 {[%emt 1:31:06]} Nf6 {[%emt 0:00:00]} 4. e3 {[%emt 0:00:30]} e6 {[%emt 0:01:00]} 5. Nbd2 {[%emt 0:00:30]} Bd6 {[%emt 0:00:00]} 6. Bd3 {[%emt 0:00:30]} O-O {[%emt 0:01:00]} 7. e4 {[%emt 0:00:30]} dxe4 {[%emt 0:00:00]} 8. Nxe4 {[%emt 0:00:30]} Nxe4 {[%emt 0:00:00]} 9. Bxe4 {[%emt 0:00:30]} Bb4+ {[%emt 0:00:00]} 10. Bd2 Bxd2+ {[%emt 0:02:00]} 11. Qxd2 {[%emt 0:01:00]} Nd7 {[%emt 0:00:00]} 12. O-O-O {[%emt 0:00:30]} Nf6 {[%emt 0:00:00]} 13. Bc2 {[%emt 0:00:30]} b5 {[%emt 0:00:00]} 14. c5 {[%emt 0:00:30]} a5 {[%emt 0:02:00]} 15. Rde1 {[%emt 0:00:30]} a4 {[%emt 0:00:30]} 16. Re5 {[%emt 0:00:30]} Qa5 {[%emt 0:00:30]} 17. Qf4 {[%emt 0:00:30]} a3 {[%emt 0:00:30]} 18. b3 {[%emt 0:00:00]} Qc3 {[%emt 0:00:00]} 19. Rg5 {[%emt 0:01:00]} Ne8 {[%emt 0:01:00]} 20. Kd1 {[%emt 0:00:30]} Qa1+ {[%emt 0:00:00]} 21. Qc1 {[%emt 0:00:30]} Qxc1+ {[%emt 0:00:00]} 22. Kxc1 {[%emt 0:00:00]} f6 {[%emt 0:00:00]} 23. Rg3 {[%emt 0:00:00]} Nc7 {[%emt 0:00:00]} 24. Rd1 {[%emt 0:00:00]} Nd5 {[%emt 0:00:00]} 25. Rd2 {[%emt 0:00:00]} Nc3 {[%emt 0:00:00]} 26. Bd3 {[%emt 0:00:00]} Ba6 {[%emt 0:01:27]} 27. Ne1 {[%emt 0:00:00]} b4 {[%emt 0:00:30]} 28. Re3 {[%emt 0:00:00]} Kf7 {[%emt 0:01:19]} 29. g3 {[%emt 0:00:00]} Bxd3 {[%emt 0:00:43]} 30. Nxd3 {[%emt 0:00:00]} Nd5 {[%emt 0:00:27]} 31. Re1 {[%emt 0:00:00]} Rab8 {[%emt 0:00:30]} 32. f4 {[%emt 0:00:00]} Rfd8 {[%emt 0:00:30]} 33. Kc2 {[%emt 0:00:00]} Nc7 {[%emt 0:00:35]} 34. Nc1 {[%emt 0:00:00]} Nb5 {[%emt 0:00:30]} 35. Ne2 {[%emt 0:00:00]} Rd5 {[%emt 0:00:47]} 36. Kd3 {[%emt 0:00:00]} Rbd8 {[%emt 0:00:33]} 37. Kc4 {[%emt 0:00:06]} Rb8 {[%emt 0:00:30]} 38. Rd3 {[%emt 0:00:30]} Rb7 {[%emt 0:00:30]} 39. g4 {[%emt 0:00:30]} Rb8 {[%emt 0:00:30]} 40. h4 {[%emt 0:00:30]} h6 {[%emt 0:00:30]} 41. h5 {[%emt 0:00:30]} Rbd8 {[%emt 0:00:30]} 42. Rf1 {[%emt 0:00:30]} R8d7 {[%emt 0:00:30]} 43. Kxb4 {[%emt 0:00:30]} e5 {[%emt 0:00:30]} 44. Rfd1 {[%emt 0:00:30]} exd4 {[%emt 0:00:30]} 45. Kc4 {[%emt 0:00:30]} Re7 {[%emt 0:00:30]} 46. Ng3 {[%emt 0:00:30]} Nc3 {[%emt 0:00:30]} 47. R1d2 {[%emt 0:00:30]} Nb1 {[%emt 0:00:30]} 48. Rc2 {[%emt 0:00:30]} Re3 {[%emt 0:00:30]} 49. Nf5 {[%emt 0:00:30]} Rxd3 {[%emt 0:00:30]} 50. Kxd3 {[%emt 0:00:30]} Nc3 {[%emt 0:00:30]} 51. Nxd4 {[%emt 0:00:30]} Nb5 {[%emt 0:00:30]} 52. Rc4 {[%emt 0:00:30]} g6 {[%emt 0:00:30]} 53. hxg6+ {[%emt 0:00:30]} Kxg6 {[%emt 0:00:30]} 54. f5+ {[%emt 0:00:30]} Kg5 {[%emt 0:00:30]} 55. Ke4 {[%emt 0:00:30]} Nxd4 {[%emt 0:00:30]} 56. Rxd4 {[%emt 0:00:30]} Rxc5 {[%emt 0:00:30]} 57. Rd7 {[%emt 0:00:30]} Kxg4 {[%emt 0:00:30]} 58. Rg7+ {[%emt 0:00:30]} Kh5 {[%emt 0:00:30]} 59. Ra7 {[%emt 0:00:30]} Kg5 {[%emt 0:00:30]} 60. Rg7+ {[%emt 0:00:30]} Kh5 {[%emt 0:00:30]} 61. Ra7 {[%emt 0:00:30]} Kg5 {[%emt 0:00:30]} 62. Rg7+ {[%emt 0:00:30]} Kh5 {[%emt 0:00:30]} 63. Ra7 {[%emt 0:00:30]} Kg5 {[%emt 0:00:08]} 64. Rd7 {[%emt 0:08:24]} Kg4 {[%emt 0:01:31]} 65. Rg7+ {[%emt 0:00:30]} Kh5 {[%emt 0:00:30]} 66. Ra7 {[%emt 0:00:30]} Kg5 {[%emt 0:00:30]} 67. Rg7+ {[%emt 0:00:00]} Kh5 68. Ra7 {[%emt 0:01:00]} 1/2-1/2

[Event "75th Argentine Women-ch 2024"]
[Site "Buenos Aires"]
[Date "2024.11.22"]
[Round "1.3"]
[White "Bossero, Ingrid"]
[Black "Zuriel, Marisa"]
[Result "0-1"]
[ECO "B84"]
[WhiteElo "1694"]
[BlackElo "2163"]
[Annotator "RC"]
[PlyCount "74"]
[EventDate "2024.11.21"]
[EventType "swiss"]
[EventCountry "ARG"]
[SourceTitle "playchess.com"]
[Source "ChessBase"]
[SourceQuality "1"]
[TimeControl "5400+30"]

1. e4 {[%emt 0:00:02]} c5 {[%emt 0:00:12]} 2. Nf3 {[%emt 0:00:06]} d6 {[%emt 0:00:07]} 3. d4 {[%emt 0:00:29]} cxd4 {[%emt 0:00:08]} 4. Nxd4 {[%emt 0:00:10]} Nf6 {[%emt 0:00:08]} 5. Nc3 {[%emt 0:00:22]} a6 {[%emt 0:00:14]} 6. Be2 {[%emt 0:00:53]} e6 {[%emt 0:00:21]} 7. O-O {[%emt 0:00:55]} Be7 {[%emt 0:00:16]} 8. Be3 {[%emt 0:01:13]} O-O {[%emt 0:00:33]} 9. Qd2 {[%emt 0:03:06]} Qc7 {[%emt 0:02:06]} 10. Kh1 {[%emt 0:04:49]} b5 {[%emt 0:01:00]} 11. a3 {[%emt 0:01:33]} Bb7 {[%emt 1:30:55]} 12. f3 {[%emt 0:03:16]} Nbd7 {[%emt 0:00:00]} 13. Bd3 {[%emt 0:03:26]} Ne5 {[%emt 0:00:00]} 14. Qf2 {[%emt 0:05:16]} Rac8 {[%emt 0:00:00]} 15. Rad1 {[%emt 0:03:56]} Nc4 {[%emt 0:02:00]} 16. Bc1 {[%emt 0:00:52]} Nxa3 {[%emt 0:00:30]} 17. bxa3 {[%emt 0:11:03]} Qxc3 {[%emt 0:00:00]} 18. Ne2 {[%emt 0:00:26]} Qc7 {[%emt 0:00:00]} 19. Qg3 {[%emt 0:01:43]} Rfe8 {[%emt 0:00:00]} 20. Bb2 {[%emt 0:56:54]} g6 {[%emt 0:00:00]} 21. h4 {[%emt 0:00:00]} e5 {[%emt 0:02:30]} 22. Qh2 {[%emt 0:00:00]} h5 {[%emt 0:00:30]} 23. Rf2 {[%emt 0:00:00]} Bf8 {[%emt 0:00:00]} 24. Bc1 {[%emt 0:00:00]} Bg7 {[%emt 0:00:00]} 25. Ng1 {[%emt 0:00:00]} d5 {[%emt 0:00:00]} 26. exd5 {[%emt 0:00:00]} Bxd5 {[%emt 0:00:00]} 27. Nh3 {[%emt 0:00:00]} Qb6 {[%emt 0:00:00]} 28. Rdf1 {[%emt 0:00:00]} Bc4 {[%emt 0:00:00]} 29. Qg3 {[%emt 0:00:00]} Bxd3 {[%emt 0:00:00]} 30. cxd3 {[%emt 0:00:00]} Rc3 {[%emt 0:00:00]} 31. Rd1 {[%emt 0:00:00]} Qe6 {[%emt 0:00:00]} 32. Bb2 {[%emt 0:00:00]} Qb3 {[%emt 0:00:00]} 33. Bxc3 {[%emt 0:00:06]} Qxd1+ {[%emt 0:00:00]} 34. Kh2 {[%emt 0:00:22]} Qxd3 {[%emt 0:00:00]} 35. Bxe5 {[%emt 0:01:46]} Rxe5 {[%emt 0:00:00]} 36. Rd2 {[%emt 0:01:55]} Qxd2 {[%emt 0:00:00]} 37. Qxe5 {[%emt 0:00:04]} Ng4+ {[%emt 0:00:00]} 0-1

[Event "75th Argentine Women-ch 2024"]
[Site "Buenos Aires"]
[Date "2024.11.21"]
[Round "1.4"]
[White "Adam, Ernestina"]
[Black "Alvarez, Mia Morena"]
[Result "1-0"]
[ECO "B99"]
[WhiteElo "2154"]
[BlackElo "1653"]
[Annotator "RC"]
[PlyCount "49"]
[EventDate "2024.11.21"]
[EventType "swiss"]
[EventCountry "ARG"]
[SourceTitle "playchess.com"]
[Source "ChessBase"]
[SourceQuality "1"]
[TimeControl "5400+30"]

1. e4 {[%emt 0:00:03]} c5 {[%emt 0:00:09]} 2. Nf3 {[%emt 0:00:09]} d6 {[%emt 0:00:17]} 3. d4 {[%emt 0:00:08]} cxd4 {[%emt 0:00:06]} 4. Nxd4 {[%emt 0:00:08]} Nf6 {[%emt 0:00:20]} 5. Nc3 {[%emt 0:00:08]} a6 {[%emt 0:00:19]} 6. Bg5 {[%emt 0:00:09]} e6 {[%emt 0:00:33]} 7. f4 {[%emt 0:00:27]} Be7 {[%emt 0:00:21]} 8. Qf3 {[%emt 0:01:36]} Qc7 {[%emt 0:00:17]} 9. O-O-O {[%emt 0:00:34]} Nbd7 {[%emt 0:01:08]} 10. Bd3 {[%emt 0:03:18]} Nc5 {[%emt 0:05:29]} 11. Rhe1 {[%emt 0:01:13]} h6 {[%emt 1:27:01]} 12. Qh3 {[%emt 1:28:37]} e5 {[%emt 0:00:30]} 13. Nf5 {[%emt 0:00:00]} g6 {[%emt 0:00:30]} 14. Qh4 {[%emt 0:01:00]} gxf5 {[%emt 0:00:00]} 15. Bxf6 {[%emt 0:00:00]} fxe4 {[%emt 0:00:00]} 16. Bxe4 {[%emt 0:01:00]} Be6 {[%emt 0:00:00]} 17. Bd5 {[%emt 0:00:00]} Rg8 {[%emt 0:00:00]} 18. Bxe6 {[%emt 0:01:00]} fxe6 {[%emt 0:00:00]} 19. Qh5+ {[%emt 0:00:00]} Kd8 {[%emt 0:00:00]} 20. Qf7 {[%emt 0:00:00]} Rf8 {[%emt 0:00:00]} 21. Qxf8+ {[%emt 0:00:00]} Kd7 {[%emt 0:00:00]} 22. Qxe7+ {[%emt 0:00:00]} Kc6 {[%emt 0:00:00]} 23. Qxc7+ {[%emt 0:00:00]} Kxc7 {[%emt 0:00:00]} 24. Be7 {[%emt 0:00:00]} Kc6 {[%emt 0:00:00]} 25. Bxd6 {[%emt 0:00:00]} 1-0

[Event "75th Argentine Women-ch 2024"]
[Site "Buenos Aires"]
[Date "2024.11.22"]
[Round "1.5"]
[White "Palomares, Lujan"]
[Black "Brizzi, Milagros Tatiana"]
[Result "0-1"]
[ECO "B13"]
[WhiteElo "1633"]
[BlackElo "2114"]
[Annotator "RC"]
[PlyCount "88"]
[EventDate "2024.11.21"]
[EventType "swiss"]
[EventCountry "ARG"]
[SourceTitle "playchess.com"]
[Source "ChessBase"]
[SourceQuality "1"]
[TimeControl "5400+30"]

1. e4 {[%emt 0:00:04]} c6 {[%emt 0:00:20]} 2. d4 {[%emt 0:00:33]} d5 {[%emt 0:00:10]} 3. exd5 {[%emt 0:00:58]} cxd5 {[%emt 0:00:10]} 4. Nf3 {[%emt 0:01:00]} Nc6 {[%emt 0:01:16]} 5. Bf4 {[%emt 0:06:18]} Nf6 {[%emt 0:01:26]} 6. c3 {[%emt 0:11:38]} Bg4 {[%emt 0:04:29]} 7. Nbd2 {[%emt 0:03:22]} e6 {[%emt 0:01:03]} 8. Qc2 {[%emt 0:02:19]} Bd6 {[%emt 1:25:36]} 9. Bxd6 {[%emt 0:11:56]} Qxd6 {[%emt 0:00:00]} 10. Bd3 {[%emt 0:57:22]} O-O {[%emt 0:00:00]} 11. O-O {[%emt 0:00:00]} Rac8 {[%emt 0:00:00]} 12. a3 {[%emt 0:00:00]} Bh5 {[%emt 0:00:00]} 13. Rfe1 {[%emt 0:00:00]} a6 {[%emt 0:00:00]} 14. Rac1 {[%emt 0:00:00]} Rc7 {[%emt 0:00:00]} 15. Qb1 {[%emt 0:00:00]} Bg6 {[%emt 0:00:00]} 16. Ne5 {[%emt 0:00:00]} Na5 {[%emt 0:00:00]} 17. Nxg6 {[%emt 0:00:00]} hxg6 {[%emt 0:00:00]} 18. b4 {[%emt 0:00:00]} Qf4 {[%emt 0:00:00]} 19. Nf3 {[%emt 0:00:00]} Nc6 {[%emt 0:00:00]} 20. Qc2 {[%emt 0:00:00]} Rfc8 {[%emt 0:00:00]} 21. Qe2 {[%emt 0:00:00]} Ne7 {[%emt 0:00:00]} 22. c4 {[%emt 0:01:36]} dxc4 {[%emt 0:00:00]} 23. Rxc4 {[%emt 0:00:41]} Rxc4 {[%emt 0:00:00]} 24. Bxc4 {[%emt 0:00:21]} Nfd5 {[%emt 0:00:00]} 25. g3 {[%emt 0:01:57]} Qg4 {[%emt 0:00:00]} 26. Bxd5 {[%emt 0:00:44]} Nxd5 {[%emt 0:00:00]} 27. Ne5 {[%emt 0:00:51]} Qxe2 {[%emt 0:00:00]} 28. Rxe2 {[%emt 0:00:33]} Rc1+ {[%emt 0:00:00]} 29. Kg2 {[%emt 0:00:16]} b6 {[%emt 0:00:00]} 30. Nd7 {[%emt 0:01:54]} Rc4 {[%emt 0:00:00]} 31. Rd2 {[%emt 0:00:44]} f6 {[%emt 0:00:00]} 32. Nb8 {[%emt 0:00:33]} a5 {[%emt 0:00:00]} 33. bxa5 {[%emt 0:00:30]} bxa5 {[%emt 0:00:00]} 34. Na6 {[%emt 0:00:18]} Rc3 {[%emt 0:00:00]} 35. a4 {[%emt 0:00:28]} Rc4 {[%emt 0:00:00]} 36. Nc5 {[%emt 0:00:19]} Kf7 {[%emt 0:01:47]} 37. Re2 {[%emt 0:00:59]} e5 {[%emt 0:03:17]} 38. Nb3 {[%emt 0:00:34]} exd4 {[%emt 0:01:55]} 39. Nxa5 {[%emt 0:00:18]} Rxa4 {[%emt 0:03:10]} 40. Nc6 {[%emt 0:00:31]} d3 {[%emt 0:01:19]} 41. Rd2 {[%emt 0:00:38]} Ra3 {[%emt 0:00:33]} 42. Nd4 {[%emt 0:00:28]} Nb4 {[%emt 0:01:37]} 43. Kf3 {[%emt 0:00:34]} f5 {[%emt 0:00:12]} 44. Ke3 {[%emt 0:00:27]} Nc2+ {[%emt 0:04:10]} 0-1

[Event "75th Argentine Women-ch 2024"]
[Site "Buenos Aires"]
[Date "2024.11.22"]
[Round "1.6"]
[White "Gaite, Karen Nerina"]
[Black "Perez Lascano, Lucila"]
[Result "1-0"]
[ECO "E90"]
[WhiteElo "1997"]
[BlackElo "1593"]
[Annotator "RC"]
[PlyCount "69"]
[EventDate "2024.11.21"]
[EventType "swiss"]
[EventCountry "ARG"]
[SourceTitle "playchess.com"]
[Source "ChessBase"]
[SourceQuality "1"]
[TimeControl "5400+30"]

1. c4 {[%emt 0:00:05]} Nf6 {[%emt 0:00:06]} 2. Nc3 {[%emt 0:00:08]} g6 {[%emt 0:00:08]} 3. d4 {[%emt 0:00:17]} Bg7 {[%emt 0:00:08]} 4. e4 {[%emt 0:00:08]} d6 {[%emt 0:00:09]} 5. Nf3 {[%emt 0:00:07]} O-O {[%emt 0:00:08]} 6. Be3 {[%emt 0:00:20]} e5 {[%emt 0:00:29]} 7. d5 {[%emt 0:02:21]} Ng4 {[%emt 0:02:11]} 8. Bg5 {[%emt 0:00:36]} f6 {[%emt 0:00:05]} 9. Bh4 {[%emt 0:02:28]} Nd7 {[%emt 0:00:24]} 10. h3 {[%emt 0:00:51]} Nh6 {[%emt 0:00:25]} 11. g4 {[%emt 0:03:23]} Nf7 {[%emt 0:10:16]} 12. Bd3 {[%emt 0:03:07]} Bh6 {[%emt 0:02:03]} 13. b4 {[%emt 0:10:41]} Bf4 {[%emt 0:11:24]} 14. Ne2 {[%emt 0:07:58]} Qe7 {[%emt 0:03:19]} 15. Bg3 {[%emt 0:02:25]} g5 {[%emt 0:15:25]} 16. h4 {[%emt 0:08:56]} Nb6 {[%emt 0:08:43]} 17. Nh2 {[%emt 0:02:59]} Nh6 {[%emt 0:05:39]} 18. f3 {[%emt 0:02:21]} Bd7 {[%emt 0:03:01]} 19. Kf2 {[%emt 0:02:40]} c6 {[%emt 0:05:16]} 20. dxc6 {[%emt 0:03:07]} Bxc6 {[%emt 0:01:28]} 21. Nf1 {[%emt 0:00:42]} Nf7 {[%emt 0:05:38]} 22. Ne3 {[%emt 0:03:42]} Ba4 {[%emt 0:05:22]} 23. Nf5 {[%emt 0:05:08]} Qc7 {[%emt 0:03:51]} 24. Qf1 {[%emt 0:01:01]} Nxc4 {[%emt 0:05:20]} 25. Nxf4 {[%emt 0:09:22]} exf4 {[%emt 0:04:31]} 26. Bxc4 {[%emt 0:00:10]} fxg3+ {[%emt 0:00:14]} 27. Kg2 {[%emt 0:00:41]} Kh8 {[%emt 0:01:13]} 28. hxg5 {[%emt 0:01:29]} fxg5 {[%emt 0:02:20]} 29. Rxh7+ {[%emt 0:11:10]} Kxh7 {[%emt 0:00:47]} 30. Qh1+ {[%emt 0:00:05]} Kg6 {[%emt 0:02:28]} 31. Bxf7+ {[%emt 0:00:14]} Kxf7 {[%emt 0:00:40]} 32. Qh7+ {[%emt 0:00:09]} Ke6 {[%emt 0:01:04]} 33. Qxc7 {[%emt 0:00:08]} Rae8 {[%emt 0:01:30]} 34. Qxd6+ {[%emt 0:00:50]} Kf7 {[%emt 0:00:22]} 35. Rh1 {[%emt 0:01:44]} 1-0

[Event "75th Argentine Women-ch 2024"]
[Site "Buenos Aires"]
[Date "2024.11.22"]
[Round "1.8"]
[White "Nejanky, Maisa"]
[Black "Quiroga Ortiz, Isabella"]
[Result "1-0"]
[ECO "B12"]
[WhiteElo "1928"]
[BlackElo "1508"]
[Annotator "RC"]
[PlyCount "131"]
[EventDate "2024.11.21"]
[EventType "swiss"]
[EventCountry "ARG"]
[SourceTitle "playchess.com"]
[Source "ChessBase"]
[SourceQuality "1"]
[TimeControl "5400+30"]

1. e4 {[%emt 0:00:04]} c6 {[%emt 0:00:10]} 2. d4 {[%emt 0:00:05]} d5 {[%emt 0:00:11]} 3. e5 {[%emt 0:00:10]} Bf5 {[%emt 0:00:34]} 4. h4 {[%emt 0:00:12]} h5 {[%emt 0:00:29]} 5. c4 {[%emt 0:00:23]} e6 {[%emt 0:00:26]} 6. Nc3 {[%emt 0:00:08]} Be7 {[%emt 0:00:58]} 7. Nf3 {[%emt 0:03:18]} Nh6 {[%emt 0:04:14]} 8. Bg5 {[%emt 0:03:27]} Bg6 {[%emt 0:00:52]} 9. Qb3 {[%emt 0:14:30]} Qb6 {[%emt 0:02:54]} 10. Qxb6 {[%emt 0:10:32]} axb6 {[%emt 0:00:06]} 11. cxd5 {[%emt 0:00:44]} cxd5 {[%emt 0:00:16]} 12. Rc1 {[%emt 0:16:05]} Bb4 {[%emt 0:04:56]} 13. a3 {[%emt 0:01:22]} Bxc3+ {[%emt 0:00:45]} 14. Rxc3 {[%emt 0:00:06]} Kd7 {[%emt 0:07:54]} 15. Bb5+ {[%emt 0:09:55]} Nc6 {[%emt 0:01:00]} 16. Bxh6 {[%emt 0:08:41]} Rxh6 {[%emt 0:02:02]} 17. Kd2 {[%emt 0:01:44]} Rhh8 {[%emt 0:01:44]} 18. Rhc1 {[%emt 0:04:24]} Rac8 {[%emt 0:03:07]} 19. Ne1 {[%emt 0:02:24]} Rhf8 {[%emt 0:04:00]} 20. Rg3 {[%emt 0:13:40]} Ke7 {[%emt 0:02:20]} 21. Bxc6 {[%emt 0:01:31]} Rxc6 {[%emt 0:00:42]} 22. Rxc6 {[%emt 0:02:28]} bxc6 {[%emt 0:00:06]} 23. Rb3 {[%emt 0:00:35]} Rb8 {[%emt 0:01:42]} 24. Nd3 {[%emt 0:01:48]} Bxd3 {[%emt 0:00:34]} 25. Kxd3 {[%emt 0:00:13]} Kd7 {[%emt 0:02:38]} 26. Kd2 {[%emt 0:01:46]} g6 {[%emt 0:02:42]} 27. Ke3 {[%emt 0:01:33]} Kc7 {[%emt 0:03:13]} 28. Kf4 {[%emt 0:00:07]} c5 {[%emt 0:02:18]} 29. Kg5 {[%emt 0:01:05]} Kc6 {[%emt 0:03:19]} 30. dxc5 {[%emt 0:01:09]} Kxc5 {[%emt 0:00:09]} 31. Rc3+ {[%emt 0:01:02]} Kd4 {[%emt 0:01:53]} 32. Kf4 {[%emt 0:00:42]} Rb7 {[%emt 0:02:15]} 33. f3 {[%emt 0:00:20]} b5 {[%emt 0:04:23]} 34. g4 {[%emt 0:00:43]} b4 {[%emt 0:03:43]} 35. axb4 {[%emt 0:00:26]} Rxb4 {[%emt 0:00:20]} 36. Rc7 {[%emt 0:00:13]} Kd3+ {[%emt 0:01:18]} 37. Kg5 {[%emt 0:00:07]} hxg4 {[%emt 0:01:56]} 38. fxg4 {[%emt 0:00:05]} Ke4 {[%emt 0:00:06]} 39. Rxf7 {[%emt 0:00:41]} d4 {[%emt 0:01:10]} 40. Kxg6 {[%emt 0:00:48]} d3 {[%emt 0:00:48]} 41. h5 {[%emt 0:00:33]} Ke3 {[%emt 0:03:42]} 42. g5 {[%emt 0:00:25]} Rf4 {[%emt 0:02:27]} 43. h6 {[%emt 0:00:54]} d2 {[%emt 0:01:19]} 44. Rd7 {[%emt 0:00:33]} Rd4 {[%emt 0:00:11]} 45. Rxd4 {[%emt 0:00:18]} Kxd4 {[%emt 0:00:13]} 46. h7 {[%emt 0:00:06]} d1=Q {[%emt 0:00:41]} 47. h8=Q {[%emt 0:00:08]} Qc2+ {[%emt 0:00:30]} 48. Kf7 {[%emt 0:00:48]} Qc7+ {[%emt 0:06:09]} 49. Kxe6 {[%emt 0:00:47]} Qc6+ {[%emt 0:00:08]} 50. Kf7 {[%emt 0:01:05]} Qb7+ {[%emt 0:01:14]} 51. Kf6 {[%emt 0:00:29]} Qf3+ {[%emt 0:00:59]} 52. Kg7 {[%emt 0:00:29]} Qb7+ {[%emt 0:00:49]} 53. Kf6 {[%emt 0:00:29]} Qf3+ {[%emt 0:00:17]} 54. Kg6 {[%emt 0:00:33]} Qe4+ {[%emt 0:00:13]} 55. Kg7 {[%emt 0:00:26]} Qb7+ {[%emt 0:00:45]} 56. Kg8 {[%emt 0:00:31]} Qa8+ {[%emt 0:01:04]} 57. Kh7 {[%emt 0:00:28]} Qh1+ {[%emt 0:00:11]} 58. Kg7 {[%emt 0:00:09]} Qb7+ {[%emt 0:00:11]} 59. Kf6 {[%emt 0:00:55]} Qc6+ {[%emt 0:00:22]} 60. e6 {[%emt 0:00:15]} Kc5 {[%emt 0:01:16]} 61. Qf8+ {[%emt 0:00:25]} Kb5 {[%emt 0:01:15]} 62. Qb8+ {[%emt 0:00:16]} Kc4 {[%emt 0:01:16]} 63. Qe5 {[%emt 0:00:32]} Qf3+ {[%emt 0:01:02]} 64. Kg7 {[%emt 0:00:09]} Qh5 {[%emt 0:01:26]} 65. e7 {[%emt 0:00:18]} Qe8 {[%emt 0:00:31]} 66. Qc7+ {[%emt 0:00:27]} 1-0

[Event "75th Argentine Women-ch 2024"]
[Site "Buenos Aires"]
[Date "2024.11.22"]
[Round "1.9"]
[White "Perez Mosqueda, Valeria Ritzabeth"]
[Black "Maggiolo, Elisa"]
[Result "0-1"]
[ECO "D94"]
[WhiteElo "1476"]
[BlackElo "1922"]
[Annotator "RC"]
[PlyCount "94"]
[EventDate "2024.11.21"]
[EventType "swiss"]
[EventCountry "ARG"]
[SourceTitle "playchess.com"]
[Source "ChessBase"]
[SourceQuality "1"]
[TimeControl "5400+30"]

1. d4 {[%emt 0:00:06]} Nf6 {[%emt 0:00:12]} 2. Nf3 {[%emt 0:00:14]} g6 {[%emt 0:00:11]} 3. e3 {[%emt 0:00:07]} Bg7 {[%emt 0:00:15]} 4. c4 {[%emt 0:00:20]} c5 {[%emt 0:00:54]} 5. Nc3 {[%emt 0:00:15]} O-O {[%emt 0:01:04]} 6. Be2 {[%emt 0:00:22]} d5 {[%emt 0:02:26]} 7. O-O {[%emt 0:00:43]} cxd4 {[%emt 0:02:09]} 8. exd4 {[%emt 0:00:17]} Nc6 {[%emt 0:00:11]} 9. b3 {[%emt 0:01:31]} Bg4 {[%emt 0:02:07]} 10. Bb2 {[%emt 0:05:37]} dxc4 {[%emt 0:10:26]} 11. bxc4 {[%emt 0:04:00]} Bxf3 {[%emt 0:02:17]} 12. Bxf3 {[%emt 0:01:05]} Qxd4 {[%emt 0:02:46]} 13. Qe2 {[%emt 0:11:31]} Qc5 {[%emt 0:20:09]} 14. Bxc6 {[%emt 0:06:47]} bxc6 {[%emt 0:02:35]} 15. a4 {[%emt 0:02:06]} Rab8 {[%emt 0:06:20]} 16. Ba3 {[%emt 0:02:51]} Qa5 {[%emt 0:00:07]} 17. Rfc1 {[%emt 0:09:51]} Rb3 {[%emt 0:06:51]} 18. Bb2 {[%emt 0:02:10]} Rfb8 {[%emt 0:01:12]} 19. Rab1 {[%emt 0:02:51]} e6 {[%emt 0:07:05]} 20. g3 {[%emt 0:03:30]} Nd7 {[%emt 0:02:27]} 21. Qc2 {[%emt 0:01:32]} Ne5 {[%emt 0:06:47]} 22. Ba1 {[%emt 0:07:24]} Rxb1 {[%emt 0:03:02]} 23. Rxb1 {[%emt 0:00:18]} Rxb1+ {[%emt 0:00:17]} 24. Qxb1 {[%emt 0:02:40]} Nxc4 {[%emt 0:02:08]} 25. Qb8+ {[%emt 0:03:40]} Bf8 {[%emt 0:00:01]} 26. Qb1 {[%emt 0:00:14]} Qb4 {[%emt 0:08:07]} 27. Qd3 {[%emt 0:08:09]} Ne5 {[%emt 0:00:20]} 28. Qe3 {[%emt 0:03:13]} Qb8 {[%emt 0:03:06]} 29. Qe4 {[%emt 0:04:25]} h5 {[%emt 0:05:33]} 30. Ne2 {[%emt 0:01:24]} Bg7 {[%emt 0:00:14]} 31. Nf4 {[%emt 0:05:49]} Qd6 {[%emt 0:01:54]} 32. Kg2 {[%emt 0:02:34]} Ng4 {[%emt 0:00:38]} 33. Bxg7 {[%emt 0:01:59]} Kxg7 {[%emt 0:00:01]} 34. h3 {[%emt 0:01:48]} Nf6 {[%emt 0:00:37]} 35. Qe3 {[%emt 0:00:23]} c5 {[%emt 0:00:12]} 36. Qc3 {[%emt 0:01:45]} Qd4 {[%emt 0:00:15]} 37. Qxd4 {[%emt 0:00:48]} cxd4 {[%emt 0:00:01]} 38. Kf1 {[%emt 0:00:13]} Ne4 {[%emt 0:00:36]} 39. Ke2 {[%emt 0:02:03]} e5 {[%emt 0:00:25]} 40. Nd3 {[%emt 0:00:18]} Kf6 {[%emt 0:00:21]} 41. Kf3 {[%emt 0:00:50]} Nc3 {[%emt 0:00:07]} 42. a5 {[%emt 0:00:39]} e4+ {[%emt 0:00:02]} 43. Kf4 {[%emt 0:00:52]} exd3 {[%emt 0:00:03]} 44. g4 {[%emt 0:00:33]} d2 {[%emt 0:00:07]} 45. f3 {[%emt 0:00:15]} d1=Q {[%emt 0:00:05]} 46. Kg3 {[%emt 0:00:11]} Qg1+ {[%emt 0:00:23]} 47. Kf4 {[%emt 0:00:12]} g5# {[%emt 0:06:54]} 0-1